[Event "Elite Hotels Open 2024"]
[Site "Elite Stadshotellet, Kungsgatan 6, Vaxjo, Sweden"]
[Date "2024.02.11"]
[Round "8.11"]
[White "Crevatin, Leo"]
[Black "Seiger, Vidar"]
[Result "0-1"]
[TimeControl "15 minutes + 5 seconds per move from move one (Round 1 - 4) / 90 minutes + 30 seconds per move from move one (Round 5 - 8)"]
[WhiteTitle "FM"]
[WhiteFideId "1726307"]
[BlackFideId "1756079"]
[WhiteElo "2303"]
[BlackElo "1978"]

1. d4 {[%clk 01:30:52]} {[%emt 00:00:07]} Nf6 {[%clk 01:30:47]} {[%emt
00:00:14]} 2. c4 {[%clk 01:31:17]} {[%emt 00:00:06]} g6 {[%clk 01:31:11]}
{[%emt 00:00:05]} 3. Nc3 {[%clk 01:31:42]} {[%emt 00:00:05]} Bg7 {[%clk
01:31:37]} {[%emt 00:00:04]} 4. e4 {[%clk 01:32:08]} {[%emt 00:00:04]} O-O
{[%clk 01:32:01]} {[%emt 00:00:06]} 5. Nf3 {[%clk 01:32:35]} {[%emt 00:00:04]}
d6 {[%clk 01:32:25]} {[%emt 00:00:06]} 6. Be2 {[%clk 01:32:59]} {[%emt
00:00:06]} Na6 {[%clk 01:32:51]} {[%emt 00:00:04]} 7. O-O {[%clk 01:32:33]}
{[%emt 00:00:53]} e5 {[%clk 01:33:16]} {[%emt 00:00:07]} 8. Be3 {[%clk
01:32:45]} {[%emt 00:00:18]} c6 {[%clk 01:33:39]} {[%emt 00:00:07]} 9. Re1
{[%clk 01:24:03]} {[%emt 00:09:12]} Qe7 {[%clk 01:28:30]} {[%emt 00:05:39]} 10.
h3 {[%clk 01:11:36]} {[%emt 00:12:57]} Nh5 {[%clk 01:21:12]} {[%emt 00:07:47]}
11. Bf1 {[%clk 01:09:30]} {[%emt 00:02:36]} Nc7 {[%clk 01:14:04]} {[%emt
00:07:39]} 12. b4 {[%clk 01:01:32]} {[%emt 00:08:28]} exd4 {[%clk 01:09:17]}
{[%emt 00:05:17]} 13. Bxd4 {[%clk 01:01:16]} {[%emt 00:00:45]} Bxd4 {[%clk
01:08:30]} {[%emt 00:01:18]} 14. Nxd4 {[%clk 01:00:46]} {[%emt 00:00:58]} Qf6
{[%clk 01:04:59]} {[%emt 00:04:03]} 15. Rc1 {[%clk 00:58:32]} {[%emt 00:02:44]}
Nf4 {[%clk 01:02:17]} {[%emt 00:03:12]} 16. Re3 {[%clk 00:54:49]} {[%emt
00:04:13]} Nce6 {[%clk 01:00:40]} {[%emt 00:02:07]} 17. Nf3 {[%clk 00:52:56]}
{[%emt 00:02:21]} Ng5 {[%clk 00:56:26]} {[%emt 00:04:46]} 18. Nxg5 {[%clk
00:48:22]} {[%emt 00:05:05]} Qxg5 {[%clk 00:56:53]} {[%emt 00:00:02]} 19. Kh2
{[%clk 00:46:59]} {[%emt 00:01:52]} h5 {[%clk 00:49:13]} {[%emt 00:08:11]} 20.
Qxd6 {[%clk 00:38:35]} {[%emt 00:08:53]} Rd8 {[%clk 00:47:52]} {[%emt
00:01:51]} 21. Qc7 {[%clk 00:37:58]} {[%emt 00:01:07]} Rd7 {[%clk 00:41:21]}
{[%emt 00:07:01]} 22. Qa5 {[%clk 00:37:31]} {[%emt 00:00:56]} Qxa5 {[%clk
00:40:20]} {[%emt 00:01:32]} 23. bxa5 {[%clk 00:38:00]} {[%emt 00:00:02]} Rd2
{[%clk 00:40:35]} {[%emt 00:00:15]} 24. Rf3 {[%clk 00:30:23]} {[%emt 00:08:06]}
Ne6 {[%clk 00:39:00]} {[%emt 00:02:05]} 25. Kg1 {[%clk 00:29:50]} {[%emt
00:01:04]} Nc5 {[%clk 00:39:04]} {[%emt 00:00:26]} 26. Re3 {[%clk 00:28:15]}
{[%emt 00:02:05]} Be6 {[%clk 00:38:23]} {[%emt 00:01:11]} 27. a3 {[%clk
00:18:35]} {[%emt 00:10:10]} Rad8 {[%clk 00:35:11]} {[%emt 00:03:41]} 28. Nd5
{[%clk 00:16:10]} {[%emt 00:02:56]} Kg7 {[%clk 00:24:22]} {[%emt 00:11:19]} 29.
h4 {[%clk 00:13:31]} {[%emt 00:03:09]} Bc8 {[%clk 00:23:12]} {[%emt 00:01:41]}
30. Nb4 {[%clk 00:12:50]} {[%emt 00:01:11]} a6 {[%clk 00:20:58]} {[%emt
00:02:43]} 31. f3 {[%clk 00:11:34]} {[%emt 00:01:46]} Be6 {[%clk 00:18:17]}
{[%emt 00:03:11]} 32. Re2 {[%clk 00:09:56]} {[%emt 00:02:08]} R2d4 {[%clk
00:18:16]} {[%emt 00:00:31]} 33. Rb2 {[%clk 00:08:55]} {[%emt 00:01:31]} f5
{[%clk 00:17:01]} {[%emt 00:01:45]} 34. exf5 {[%clk 00:08:34]} {[%emt
00:00:51]} gxf5 {[%clk 00:15:27]} {[%emt 00:02:04]} 35. Re2 {[%clk 00:07:01]}
{[%emt 00:02:03]} Kf6 {[%clk 00:15:10]} {[%emt 00:00:46]} 36. g3 {[%clk
00:06:18]} {[%emt 00:01:13]} f4 {[%clk 00:13:16]} {[%emt 00:02:24]} 37. gxf4
{[%clk 00:05:41]} {[%emt 00:01:08]} Rxf4 {[%clk 00:13:36]} {[%emt 00:00:10]} 38.
Kf2 {[%clk 00:03:16]} {[%emt 00:02:54]} Rxh4 {[%clk 00:13:05]} {[%emt
00:01:02]} 39. Kg3 {[%clk 00:01:57]} {[%emt 00:01:49]} Rhd4 {[%clk 00:13:10]}
{[%emt 00:00:25]} 40. Re3 {[%clk 00:01:14]} {[%emt 00:01:13]} h4+ {[%clk
00:12:45]} {[%emt 00:00:55]} 41. Kf2 {[%clk 00:01:30]} {[%emt 00:00:14]} h3
{[%clk 00:10:46]} {[%emt 00:02:29]} 42. Rxe6+ {[%clk 00:01:33]} {[%emt
00:00:27]} Nxe6 {[%clk 00:10:18]} {[%emt 00:00:58]} 43. Bxh3 {[%clk 00:01:59]}
{[%emt 00:00:04]} Nc5 {[%clk 00:08:34]} {[%emt 00:02:14]} 44. Kg3 {[%clk
00:01:34]} {[%emt 00:00:54]} Re8 {[%clk 00:07:59]} {[%emt 00:01:05]} 45. Rc3
{[%clk 00:01:10]} {[%emt 00:00:54]} Rd2 {[%clk 00:07:09]} {[%emt 00:01:21]} 46.
Bg4 {[%clk 00:00:55]} {[%emt 00:00:44]} Re1 {[%clk 00:06:28]} {[%emt 00:01:11]}
47. Kf4 {[%clk 00:00:39]} {[%emt 00:00:45]} Na4 {[%clk 00:06:31]} {[%emt
00:00:28]} 48. Rb3 {[%clk 00:00:48]} {[%emt 00:00:21]} Rd4+ {[%clk 00:06:52]}
{[%emt 00:00:09]} 49. Kg3 {[%clk 00:01:07]} {[%emt 00:00:11]} Rxc4 {[%clk
00:06:54]} {[%emt 00:00:29]} 50. Nd3 {[%clk 00:00:58]} {[%emt 00:00:38]} Re7
{[%clk 00:06:14]} {[%emt 00:01:04]} 51. Nf4 {[%clk 00:00:33]} {[%emt 00:01:00]}
Nc5 {[%clk 00:06:03]} {[%emt 00:00:40]} 52. Rb1 {[%clk 00:00:59]} {[%emt
00:00:05]} Re3 {[%clk 00:05:58]} {[%emt 00:00:34]} 53. Rh1 {[%clk 00:01:05]}
{[%emt 00:00:25]} Rxa3 {[%clk 00:06:06]} {[%emt 00:00:22]} 54. Rh6+ {[%clk
00:01:11]} {[%emt 00:00:24]} Ke5 {[%clk 00:06:24]} {[%emt 00:00:12]} 55. Ne2
{[%clk 00:00:49]} {[%emt 00:00:52]} Rc2 {[%clk 00:05:10]} {[%emt 00:01:45]} 56.
Rh5+ {[%clk 00:04:02]} {[%emt 00:02:13]} Kd6 {[%clk 00:04:54]} {[%emt
00:00:46]} 57. Nd4 {[%clk 00:03:07]} {[%emt 00:01:25]} Rd2 {[%clk 00:04:07]}
{[%emt 00:01:16]} 58. Nf5+ {[%clk 00:03:18]} {[%emt 00:00:20]} Kd5 {[%clk
00:03:15]} {[%emt 00:01:22]} 59. Rh8 {[%clk 00:01:56]} {[%emt 00:01:51]} Kc4
{[%clk 00:03:15]} {[%emt 00:00:31]} 60. Kf4 {[%clk 00:01:24]} {[%emt 00:01:01]}
Nd3 {[%clk 00:02:12]} {[%emt 00:01:34]} 61. Ke3 {[%clk 00:00:52]} {[%emt
00:01:02]} Rb2 {[%clk 00:02:17]} {[%emt 00:00:24]} 62. Nd6+ {[%clk 00:01:00]}
{[%emt 00:00:21]} Kd5 {[%clk 00:02:27]} {[%emt 00:00:21]} 63. Nc8 {[%clk
00:00:35]} {[%emt 00:00:55]} Ne5+ {[%clk 00:02:39]} {[%emt 00:00:18]} 64. Kf4
{[%clk 00:00:39]} {[%emt 00:00:27]} Rb4+ {[%clk 00:03:00]} {[%emt 00:00:09]} 65.
Kf5 {[%clk 00:00:43]} {[%emt 00:00:25]} Nxf3 {[%clk 00:03:00]} {[%emt
00:00:30]} 66. Rd8+ {[%clk 00:01:00]} {[%emt 00:00:13]} Kc5 {[%clk 00:03:21]}
{[%emt 00:00:10]} 67. Nd6 {[%clk 00:00:43]} {[%emt 00:00:47]} Nh4 {[%clk
00:01:59]} {[%emt 00:01:52]} 68. Kg5 {[%clk 00:00:36]} {[%emt 00:00:37]} Rg3
{[%clk 00:02:00]} {[%emt 00:00:28]} 69. Nxb7+ {[%clk 00:00:50]} {[%emt
00:00:17]} Rxb7 {[%clk 00:02:28]} {[%emt 00:00:02]} 70. Kxh4 {[%clk 00:01:14]}
{[%emt 00:00:06]} Ra3 {[%clk 00:02:30]} {[%emt 00:00:27]} 71. Rd1 {[%clk
00:01:03]} {[%emt 00:00:42]} Rb4 {[%clk 00:02:27]} {[%emt 00:00:33]} 72. Kh5
{[%clk 00:01:06]} {[%emt 00:00:27]} Rxa5 {[%clk 00:02:48]} {[%emt 00:00:09]} 73.
Bf3 {[%clk 00:01:10]} {[%emt 00:00:26]} Kb6+ {[%clk 00:02:58]} {[%emt
00:00:20]} 74. Kg6 {[%clk 00:01:33]} {[%emt 00:00:07]} Rc5 {[%clk 00:02:58]}
{[%emt 00:00:29]} 75. Rd8 {[%clk 00:01:50]} {[%emt 00:00:14]} Kc7 {[%clk
00:02:39]} {[%emt 00:00:48]} 76. Ra8 {[%clk 00:02:10]} {[%emt 00:00:12]} a5
{[%clk 00:03:03]} {[%emt 00:00:06]} 77. Bd1 {[%clk 00:02:05]} {[%emt 00:00:35]}
Kb7 {[%clk 00:03:10]} {[%emt 00:00:23]} 78. Re8 {[%clk 00:02:21]} {[%emt
00:00:14]} a4 {[%clk 00:03:23]} {[%emt 00:00:18]} 79. Re7+ {[%clk 00:02:42]}
{[%emt 00:00:08]} Kb6 {[%clk 00:03:41]} {[%emt 00:00:11]} 80. Re8 {[%clk
00:03:02]} {[%emt 00:00:11]} Ra5 {[%clk 00:03:59]} {[%emt 00:00:12]} 81. Rb8+
{[%clk 00:02:57]} {[%emt 00:00:35]} Kc5 {[%clk 00:04:23]} {[%emt 00:00:05]} 82.
Rc8 {[%clk 00:02:23]} {[%emt 00:01:05]} a3 {[%clk 00:04:30]} {[%emt 00:00:23]}
83. Bf3 {[%clk 00:02:43]} {[%emt 00:00:10]} Ra6 {[%clk 00:04:14]} {[%emt
00:00:46]} 84. Rf8 {[%clk 00:02:57]} {[%emt 00:00:15]} a2 {[%clk 00:04:35]}
{[%emt 00:00:10]} 85. Rf5+ {[%clk 00:03:20]} {[%emt 00:00:07]} Kb6 {[%clk
00:04:57]} {[%emt 00:00:08]} 0-1

[Event "Elite Hotels Open 2024"]
[Site "Elite Stadshotellet, Kungsgatan 6, Vaxjo, Sweden"]
[Date "2024.02.11"]
[Round "8.12"]
[White "Sigeman, Johan"]
[Black "Fransson, Jorgen"]
[Result "1/2-1/2"]
[TimeControl "15 minutes + 5 seconds per move from move one (Round 1 - 4) / 90 minutes + 30 seconds per move from move one (Round 5 - 8)"]
[WhiteFideId "1705601"]
[BlackFideId "1701827"]
[WhiteElo "2020"]
[BlackElo "2134"]

1. Nf3 {[%clk 01:30:57]} {[%emt 00:00:02]} g6 {[%clk 01:30:37]} {[%emt
00:00:24]} 2. d4 {[%clk 01:31:07]} {[%emt 00:00:20]} Bg7 {[%clk 01:30:47]}
{[%emt 00:00:19]} 3. g3 {[%clk 01:31:20]} {[%emt 00:00:17]} c5 {[%clk
01:30:56]} {[%emt 00:00:21]} 4. d5 {[%clk 01:29:51]} {[%emt 00:02:00]} b5
{[%clk 01:30:00]} {[%emt 00:01:25]} 5. a4 {[%clk 01:27:07]} {[%emt 00:03:15]}
b4 {[%clk 01:28:24]} {[%emt 00:02:06]} 6. Bg2 {[%clk 01:25:09]} {[%emt
00:02:28]} d6 {[%clk 01:28:08]} {[%emt 00:00:45]} 7. O-O {[%clk 01:21:33]}
{[%emt 00:04:07]} Nf6 {[%clk 01:27:55]} {[%emt 00:00:42]} 8. c4 {[%clk
01:20:21]} {[%emt 00:01:42]} bxc3 {[%clk 01:19:31]} {[%emt 00:08:54]} 9. Nxc3
{[%clk 01:20:19]} {[%emt 00:00:32]} Nbd7 {[%clk 01:18:11]} {[%emt 00:01:50]} 10.
e4 {[%clk 01:16:24]} {[%emt 00:04:25]} Rb8 {[%clk 01:12:17]} {[%emt 00:06:24]}
11. Re1 {[%clk 01:10:13]} {[%emt 00:06:40]} Ng4 {[%clk 01:06:01]} {[%emt
00:06:46]} 12. Qc2 {[%clk 01:02:37]} {[%emt 00:08:07]} Ba6 {[%clk 01:02:39]}
{[%emt 00:03:51]} 13. Nb5 {[%clk 00:59:04]} {[%emt 00:04:05]} Qb6 {[%clk
00:56:50]} {[%emt 00:06:18]} 14. Bf1 {[%clk 00:58:59]} {[%emt 00:00:35]} O-O
{[%clk 00:56:28]} {[%emt 00:00:52]} 15. h3 {[%clk 00:49:13]} {[%emt 00:10:16]}
Ngf6 {[%clk 00:51:21]} {[%emt 00:05:36]} 16. Ra2 {[%clk 00:46:23]} {[%emt
00:03:21]} Bc8 {[%clk 00:43:51]} {[%emt 00:07:59]} 17. Bd2 {[%clk 00:40:38]}
{[%emt 00:06:16]} a6 {[%clk 00:41:23]} {[%emt 00:02:59]} 18. Na3 {[%clk
00:39:08]} {[%emt 00:02:00]} Qb3 {[%clk 00:40:17]} {[%emt 00:01:32]} 19. Qxb3
{[%clk 00:39:02]} {[%emt 00:00:41]} Rxb3 {[%clk 00:40:40]} {[%emt 00:00:07]} 20.
Bc3 {[%clk 00:38:10]} {[%emt 00:01:22]} Ne8 {[%clk 00:39:12]} {[%emt 00:01:57]}
21. Bxg7 {[%clk 00:32:49]} {[%emt 00:05:51]} Kxg7 {[%clk 00:39:32]} {[%emt
00:00:09]} 22. Nd2 {[%clk 00:33:05]} {[%emt 00:00:16]} Rb4 {[%clk 00:38:52]}
{[%emt 00:01:09]} 23. Nc2 {[%clk 00:31:13]} {[%emt 00:02:23]} Rb8 {[%clk
00:38:55]} {[%emt 00:00:27]} 24. Nc4 {[%clk 00:29:27]} {[%emt 00:02:16]} Nb6
{[%clk 00:35:14]} {[%emt 00:04:10]} 25. Na5 {[%clk 00:23:32]} {[%emt 00:06:26]}
Bd7 {[%clk 00:35:13]} {[%emt 00:00:30]} 26. b3 {[%clk 00:23:37]} {[%emt
00:00:26]} Nc7 {[%clk 00:35:25]} {[%emt 00:00:18]} 27. Ne3 {[%clk 00:23:40]}
{[%emt 00:00:27]} e6 {[%clk 00:31:28]} {[%emt 00:04:26]} 28. Rd1 {[%clk
00:20:20]} {[%emt 00:03:50]} exd5 {[%clk 00:31:18]} {[%emt 00:00:40]} 29. exd5
{[%clk 00:19:51]} {[%emt 00:00:59]} Rfd8 {[%clk 00:24:54]} {[%emt 00:06:53]} 30.
Rad2 {[%clk 00:19:44]} {[%emt 00:00:38]} Rdc8 {[%clk 00:23:18]} {[%emt
00:02:06]} 31. Rc1 {[%clk 00:19:58]} {[%emt 00:00:17]} Nba8 {[%clk 00:22:36]}
{[%emt 00:01:12]} 32. Nec4 {[%clk 00:19:33]} {[%emt 00:00:55]} Ne8 {[%clk
00:22:52]} {[%emt 00:00:12]} 33. Re1 {[%clk 00:18:34]} {[%emt 00:01:29]} Kf8
{[%clk 00:21:00]} {[%emt 00:02:23]} 34. Re3 {[%clk 00:18:44]} {[%emt 00:00:20]}
h5 {[%clk 00:20:57]} {[%emt 00:00:32]} 35. Kg2 {[%clk 00:17:39]} {[%emt
00:01:36]} Rd8 {[%clk 00:19:37]} {[%emt 00:01:49]} 36. Kh2 {[%clk 00:17:56]}
{[%emt 00:00:14]} Nac7 {[%clk 00:19:14]} {[%emt 00:00:52]} 37. Bg2 {[%clk
00:17:45]} {[%emt 00:00:41]} Na8 {[%clk 00:18:35]} {[%emt 00:01:09]} 38. Bf1
{[%clk 00:17:40]} {[%emt 00:00:35]} Nac7 {[%clk 00:19:03]} {[%emt 00:00:02]} 39.
Bg2 {[%clk 00:17:40]} {[%emt 00:00:30]} Na8 {[%clk 00:19:27]} {[%emt 00:00:05]}
40. Bf1 {[%clk 00:16:02]} {[%emt 00:02:08]} Nac7 {[%clk 00:19:51]} {[%emt
00:00:06]} 41. Bg2 {[%clk 00:15:07]} {[%emt 00:01:26]} 1/2-1/2

[Event "Elite Hotels Open 2024"]
[Site "Elite Stadshotellet, Kungsgatan 6, Vaxjo, Sweden"]
[Date "2024.02.11"]
[Round "8.13"]
[White "Bjorkman, Filip"]
[Black "Silseth, Simon"]
[Result "1/2-1/2"]
[TimeControl "15 minutes + 5 seconds per move from move one (Round 1 - 4) / 90 minutes + 30 seconds per move from move one (Round 5 - 8)"]
[BlackTitle "FM"]
[WhiteFideId "1734970"]
[BlackFideId "1702440"]
[WhiteElo "2046"]
[BlackElo "2228"]

1. e4 {[%clk 01:30:58]} {[%emt 00:00:02]} c6 {[%clk 01:30:53]} {[%emt
00:00:07]} 2. d4 {[%clk 01:31:25]} {[%emt 00:00:03]} d5 {[%clk 01:31:17]}
{[%emt 00:00:06]} 3. e5 {[%clk 01:31:52]} {[%emt 00:00:03]} Bf5 {[%clk
01:31:40]} {[%emt 00:00:07]} 4. h4 {[%clk 01:32:18]} {[%emt 00:00:04]} h5
{[%clk 01:30:08]} {[%emt 00:02:01]} 5. Bd3 {[%clk 01:32:38]} {[%emt 00:00:10]}
Bxd3 {[%clk 01:29:35]} {[%emt 00:01:03]} 6. Qxd3 {[%clk 01:33:05]} {[%emt
00:00:03]} e6 {[%clk 01:29:36]} {[%emt 00:00:29]} 7. Bg5 {[%clk 01:33:29]}
{[%emt 00:00:06]} Qb6 {[%clk 01:26:30]} {[%emt 00:03:36]} 8. Nd2 {[%clk
01:31:34]} {[%emt 00:02:25]} c5 {[%clk 01:25:17]} {[%emt 00:01:43]} 9. c4
{[%clk 01:31:51]} {[%emt 00:00:13]} Nc6 {[%clk 01:19:44]} {[%emt 00:06:03]} 10.
Ne2 {[%clk 01:28:08]} {[%emt 00:04:13]} cxd4 {[%clk 01:17:55]} {[%emt
00:02:19]} 11. cxd5 {[%clk 01:25:25]} {[%emt 00:03:13]} Nb4 {[%clk 01:10:28]}
{[%emt 00:07:56]} 12. Qb3 {[%clk 01:24:13]} {[%emt 00:01:43]} Nxd5 {[%clk
00:59:49]} {[%emt 00:11:09]} 13. Qa4+ {[%clk 01:23:18]} {[%emt 00:01:25]} Qc6
{[%clk 01:00:11]} {[%emt 00:00:07]} 14. Qxc6+ {[%clk 01:23:46]} {[%emt
00:00:03]} bxc6 {[%clk 01:00:33]} {[%emt 00:00:08]} 15. Nxd4 {[%clk 01:24:11]}
{[%emt 00:00:06]} Bc5 {[%clk 00:51:08]} {[%emt 00:09:54]} 16. N4b3 {[%clk
01:14:40]} {[%emt 00:10:01]} Bb4 {[%clk 00:47:28]} {[%emt 00:04:10]} 17. Ke2
{[%clk 01:14:51]} {[%emt 00:00:19]} f6 {[%clk 00:43:32]} {[%emt 00:04:25]} 18.
Be3 {[%clk 01:13:55]} {[%emt 00:01:27]} Bxd2 {[%clk 00:41:46]} {[%emt
00:02:16]} 19. Nxd2 {[%clk 01:13:27]} {[%emt 00:00:58]} Nge7 {[%clk 00:38:40]}
{[%emt 00:03:36]} 20. Rac1 {[%clk 01:11:16]} {[%emt 00:02:42]} O-O {[%clk
00:34:44]} {[%emt 00:04:25]} 21. Nf3 {[%clk 01:06:38]} {[%emt 00:05:08]} Nf5
{[%clk 00:32:26]} {[%emt 00:02:47]} 22. Bd2 {[%clk 01:05:21]} {[%emt 00:01:47]}
Rfc8 {[%clk 00:27:11]} {[%emt 00:05:45]} 23. g3 {[%clk 01:04:20]} {[%emt
00:01:31]} Kf7 {[%clk 00:26:11]} {[%emt 00:01:30]} 24. Rc5 {[%clk 01:04:18]}
{[%emt 00:00:32]} Rab8 {[%clk 00:23:52]} {[%emt 00:02:49]} 25. b3 {[%clk
01:04:39]} {[%emt 00:00:09]} Rb5 {[%clk 00:21:55]} {[%emt 00:02:27]} 26. Rhc1
{[%clk 01:05:02]} {[%emt 00:00:07]} Rxc5 {[%clk 00:21:51]} {[%emt 00:00:34]} 27.
Rxc5 {[%clk 01:04:51]} {[%emt 00:00:41]} Rc7 {[%clk 00:19:33]} {[%emt
00:02:48]} 28. Bc1 {[%clk 01:04:53]} {[%emt 00:00:28]} Nb6 {[%clk 00:16:14]}
{[%emt 00:03:48]} 29. Bb2 {[%clk 01:04:57]} {[%emt 00:00:26]} Nd7 {[%clk
00:16:02]} {[%emt 00:00:42]} 30. Ra5 {[%clk 01:04:51]} {[%emt 00:00:34]} c5
{[%clk 00:15:40]} {[%emt 00:00:54]} 31. exf6 {[%clk 01:04:59]} {[%emt
00:00:21]} gxf6 {[%clk 00:15:44]} {[%emt 00:00:25]} 32. Nd2 {[%clk 01:05:22]}
{[%emt 00:00:08]} e5 {[%clk 00:12:36]} {[%emt 00:03:39]} 33. Kd3 {[%clk
01:05:28]} {[%emt 00:00:23]} Nd4 {[%clk 00:12:15]} {[%emt 00:00:51]} 34. Ne4
{[%clk 01:05:20]} {[%emt 00:00:38]} f5 {[%clk 00:11:00]} {[%emt 00:01:45]} 35.
Nd6+ {[%clk 01:05:39]} {[%emt 00:00:10]} Ke6 {[%clk 00:10:45]} {[%emt
00:00:45]} 36. Nc4 {[%clk 01:03:42]} {[%emt 00:02:28]} Nc6 {[%clk 00:09:30]}
{[%emt 00:01:45]} 37. Ra6 {[%clk 01:01:43]} {[%emt 00:02:29]} Nb6 {[%clk
00:07:51]} {[%emt 00:02:09]} 38. Ba3 {[%clk 01:02:04]} {[%emt 00:00:09]} e4+
{[%clk 00:06:43]} {[%emt 00:01:37]} 39. Ke3 {[%clk 01:01:55]} {[%emt 00:00:38]}
Nb8 {[%clk 00:06:40]} {[%emt 00:00:34]} 40. Ra5 {[%clk 01:02:09]} {[%emt
00:00:16]} Nd5+ {[%clk 00:06:49]} {[%emt 00:00:21]} 41. Kd2 {[%clk 01:02:14]}
{[%emt 00:00:24]} Nd7 {[%clk 00:07:02]} {[%emt 00:00:18]} 42. Bb2 {[%clk
00:58:07]} {[%emt 00:04:37]} Nb4 {[%clk 00:06:50]} {[%emt 00:00:42]} 43. Bc3
{[%clk 00:56:37]} {[%emt 00:02:00]} Nc6 {[%clk 00:07:09]} {[%emt 00:00:11]} 44.
Ra6 {[%clk 00:56:56]} {[%emt 00:00:10]} Ndb8 {[%clk 00:07:15]} {[%emt
00:00:25]} 45. Ra4 {[%clk 00:57:21]} {[%emt 00:00:05]} Rd7+ {[%clk 00:07:30]}
{[%emt 00:00:15]} 46. Ke2 {[%clk 00:56:14]} {[%emt 00:01:38]} a6 {[%clk
00:06:14]} {[%emt 00:01:46]} 47. Na5 {[%clk 00:54:05]} {[%emt 00:02:39]} Nd4+
{[%clk 00:06:20]} {[%emt 00:00:24]} 48. Bxd4 {[%clk 00:54:30]} {[%emt
00:00:05]} cxd4 {[%clk 00:06:24]} {[%emt 00:00:26]} 49. Rb4 {[%clk 00:54:50]}
{[%emt 00:00:10]} d3+ {[%clk 00:06:23]} {[%emt 00:00:31]} 50. Kd2 {[%clk
00:55:14]} {[%emt 00:00:06]} Rd8 {[%clk 00:05:40]} {[%emt 00:01:13]} 51. Rb6+
{[%clk 00:55:23]} {[%emt 00:00:20]} Kf7 {[%clk 00:05:26]} {[%emt 00:00:44]} 52.
Nc4 {[%clk 00:55:33]} {[%emt 00:00:21]} Nd7 {[%clk 00:05:09]} {[%emt 00:00:47]}
53. Rxa6 {[%clk 00:55:16]} {[%emt 00:00:47]} Nf6 {[%clk 00:05:22]} {[%emt
00:00:17]} 54. Nd6+ {[%clk 00:54:47]} {[%emt 00:00:59]} Kf8 {[%clk 00:04:51]}
{[%emt 00:01:01]} 55. Nb7 {[%clk 00:54:56]} {[%emt 00:00:21]} e3+ {[%clk
00:04:56]} {[%emt 00:00:25]} 56. fxe3 {[%clk 00:53:16]} {[%emt 00:02:10]} Ne4+
{[%clk 00:05:21]} {[%emt 00:00:05]} 57. Kd1 {[%clk 00:53:16]} {[%emt 00:00:31]}
Nf2+ {[%clk 00:04:55]} {[%emt 00:00:56]} 58. Kd2 {[%clk 00:53:43]} {[%emt
00:00:02]} Ne4+ {[%clk 00:03:49]} {[%emt 00:01:36]} 1/2-1/2

[Event "Elite Hotels Open 2024"]
[Site "Elite Stadshotellet, Kungsgatan 6, Vaxjo, Sweden"]
[Date "2024.02.11"]
[Round "8.14"]
[White "Svensson, Mikael"]
[Black "Falkevall, Axel"]
[Result "0-1"]
[TimeControl "15 minutes + 5 seconds per move from move one (Round 1 - 4) / 90 minutes + 30 seconds per move from move one (Round 5 - 8)"]
[BlackTitle "FM"]
[WhiteFideId "1716433"]
[BlackFideId "1735560"]
[WhiteElo "2057"]
[BlackElo "2290"]

1. d4 {[%clk 01:30:57]} {[%emt 00:00:02]} Nf6 {[%clk 01:30:50]} {[%emt
00:00:09]} 2. Nf3 {[%clk 01:31:23]} {[%emt 00:00:06]} g6 {[%clk 01:31:10]}
{[%emt 00:00:10]} 3. Bg5 {[%clk 01:30:12]} {[%emt 00:01:41]} Bg7 {[%clk
01:31:01]} {[%emt 00:00:38]} 4. c3 {[%clk 01:30:15]} {[%emt 00:00:28]} O-O
{[%clk 01:30:57]} {[%emt 00:00:34]} 5. Nbd2 {[%clk 01:30:34]} {[%emt 00:00:12]}
h6 {[%clk 01:31:03]} {[%emt 00:00:23]} 6. Bh4 {[%clk 01:30:51]} {[%emt
00:00:13]} d6 {[%clk 01:28:32]} {[%emt 00:03:01]} 7. e4 {[%clk 01:31:11]}
{[%emt 00:00:10]} Qe8 {[%clk 01:28:00]} {[%emt 00:01:01]} 8. Qc2 {[%clk
01:25:26]} {[%emt 00:06:16]} e5 {[%clk 01:27:25]} {[%emt 00:01:05]} 9. dxe5
{[%clk 01:24:10]} {[%emt 00:01:46]} dxe5 {[%clk 01:27:48]} {[%emt 00:00:07]} 10.
Bc4 {[%clk 01:21:04]} {[%emt 00:03:35]} b6 {[%clk 01:23:57]} {[%emt 00:04:21]}
11. O-O {[%clk 01:20:57]} {[%emt 00:00:37]} Bb7 {[%clk 01:24:08]} {[%emt
00:00:19]} 12. Rfe1 {[%clk 01:20:35]} {[%emt 00:00:52]} Nbd7 {[%clk 01:24:01]}
{[%emt 00:00:36]} 13. b4 {[%clk 01:20:40]} {[%emt 00:00:26]} Nh5 {[%clk
01:20:59]} {[%emt 00:03:31]} 14. a4 {[%clk 01:18:00]} {[%emt 00:03:11]} a6
{[%clk 01:18:25]} {[%emt 00:03:05]} 15. Rad1 {[%clk 01:08:27]} {[%emt
00:10:03]} Kh8 {[%clk 01:16:24]} {[%emt 00:02:30]} 16. Qb3 {[%clk 01:05:17]}
{[%emt 00:03:40]} f5 {[%clk 01:10:35]} {[%emt 00:06:19]} 17. exf5 {[%clk
01:04:33]} {[%emt 00:01:14]} gxf5 {[%clk 01:10:32]} {[%emt 00:00:33]} 18. Be6
{[%clk 01:03:02]} {[%emt 00:02:01]} Nf4 {[%clk 01:06:19]} {[%emt 00:04:42]} 19.
Bxd7 {[%clk 01:01:54]} {[%emt 00:01:39]} Qxd7 {[%clk 01:04:42]} {[%emt
00:02:06]} 20. Nxe5 {[%clk 01:01:36]} {[%emt 00:00:48]} Bxe5 {[%clk 01:04:31]}
{[%emt 00:00:41]} 21. Rxe5 {[%clk 00:58:22]} {[%emt 00:03:45]} Qg7 {[%clk
01:04:23]} {[%emt 00:00:37]} 0-1